bitfinex/quotes_BTCUSD_20250623
["timestamp","ask_amount","ask_price","bid_price","bid_amount"]
[1750693948323,0.51411739,101650.0,101630.0,9.075e-05]
[1750693948545,1.545026,101640.0,101630.0,0.03129075]
[1750693949862,0.14514024,101640.0,101630.0,9.075e-05]
[1750693950576,1.69016624,101640.0,101630.0,9.075e-05]
[1750693950814,1.545026,101630.0,101610.0,0.0324]
[1750693951042,1.58986685,101610.0,101600.0,0.104]
[1750693951274,1.58986685,101600.0,101590.0,0.0002]
[1750693951504,1.69016624,101600.0,101590.0,0.00033502]
[1750693951727,1.71349802,101600.0,101590.0,0.00033502]
[1750693952637,1.74520387,101600.0,101590.0,0.00033502]
[1750693952862,1.72697322,101600.0,101590.0,0.00033502]
[1750693953098,1.91800858,101600.0,101590.0,0.00033502]
[1750693953320,0.01454085,101590.0,101580.0,0.0002]
[1750693953557,0.01454085,101590.0,101580.0,0.0002905]
[1750693953558,0.11484024,101590.0,101580.0,0.0002905]
[1750693954198,0.14399224,101590.0,101580.0,0.0002905]
[1750693954426,0.10029939,101590.0,101580.0,0.0002905]
[1750693954649,0.12990339,101590.0,101580.0,0.0022905]
[1750693955286,0.15527253,101590.0,101580.0,0.0022905]
[1750693955723,1.70029853,101590.0,101580.0,0.0092905]
[1750693956399,1.68523538,101590.0,101580.0,0.0092905]
[1750693958389,1.71547845,101590.0,101580.0,0.0092905]
[1750693960689,1.71547845,101590.0,101580.0,0.0409905]
[1750693960907,1.71547845,101590.0,101580.0,0.0709905]
[1750693961578,1.71547845,101590.0,101580.0,0.0409905]
[1750693961809,1.71547845,101590.0,101560.0,0.04613053]
[1750693961810,2.045026,101570.0,101560.0,0.04613053]
[1750693962035,1.545026,101560.0,101550.0,0.0332]
[1750693962274,1.545026,101560.0,101540.0,0.00190069]
[1750693964147,1.64532539,101560.0,101540.0,0.00190069]
[1750693964369,1.545026,101550.0,101540.0,0.00190069]
[1750693965287,1.579026,101550.0,101540.0,0.00290069]
[1750693965505,0.5,101530.0,101520.0,0.004]
[1750693965727,1.54484592,101530.0,101520.0,0.004]
[1750693966656,1.54484592,101530.0,101520.0,0.007]
[1750693967089,1.65968616,101530.0,101520.0,0.004]
[1750693967354,1.85662712,101530.0,101520.0,0.004]
[1750693967581,2.02482712,101530.0,101520.0,0.004]
[1750693967800,0.342,101530.0,101520.0,0.0685]
[1750693968023,0.343,101530.0,101520.0,0.0755]
[1750693968456,0.342,101530.0,101520.0,0.0685]
[1750693968680,0.343,101530.0,101520.0,0.0705]
[1750693968912,1.887846,101530.0,101520.0,0.0705]
[1750693969356,2.00268624,101530.0,101520.0,0.006]
[1750693969568,2.02579637,101530.0,101520.0,0.006]
[1750693969818,1.94031689,101530.0,101520.0,0.006]
[1750693970032,1.94031689,101530.0,101520.0,0.0363]
[1750693970904,2.08525713,101530.0,101520.0,0.006]
[1750693971135,2.08525713,101530.0,101500.0,0.06621]
[1750693971136,1.544846,101510.0,101500.0,0.06621]
[1750693971350,1.544846,101520.0,101500.0,0.06621]
[1750693972001,0.34,101510.0,101500.0,0.06621]
[1750693972215,1.884846,101510.0,101500.0,0.06621]
[1750693972459,1.88498392,101510.0,101500.0,0.06921]
[1750693972916,1.91660792,101510.0,101500.0,0.07621]
[1750693973371,1.95650957,101510.0,101500.0,0.07621]
[1750693973596,1.92688557,101510.0,101500.0,0.07621]
[1750693974260,1.92688557,101510.0,101500.0,0.04391]
[1750693974479,1.94997428,101510.0,101500.0,0.01231]
[1750693974907,1.92688557,101510.0,101500.0,0.01231]
[1750693975144,1.92688557,101510.0,101500.0,0.07321]
[1750693975567,1.94998291,101510.0,101500.0,0.07321]
[1750693975785,1.92688557,101510.0,101500.0,0.07321]
[1750693976987,0.04203957,101510.0,101500.0,0.07321]
[1750693977653,1.60999941,101510.0,101500.0,0.07321]
[1750693978510,1.60999941,101510.0,101500.0,0.04321]
[1750693979783,1.60999941,101510.0,101500.0,0.07641]
[1750693980215,1.60999941,101510.0,101500.0,0.04321]
[1750693981097,1.85433899,101510.0,101500.0,0.01231]
[1750693981341,2.23327877,101510.0,101500.0,0.01231]
[1750693981553,2.13297938,101510.0,101500.0,0.01231]
[1750693981776,2.01813914,101510.0,101500.0,0.07701]
[1750693982001,1.97919936,101510.0,101500.0,0.07701]
[1750693982439,1.94999941,101510.0,101500.0,0.07701]
[1750693982706,1.97919936,101510.0,101500.0,0.07701]
[1750693982919,1.97919936,101510.0,101500.0,0.04531]
[1750693983337,1.97919936,101510.0,101500.0,0.04327]
[1750693983972,1.97919936,101510.0,101500.0,0.07447]
[1750693985103,0.40515341,101510.0,101500.0,0.07447]
[1750693985327,1.94999941,101510.0,101500.0,0.07447]
[1750693985522,1.97919936,101510.0,101500.0,0.04327]
[1750693986356,1.99374021,101510.0,101500.0,0.01027]
[1750693986970,2.03267999,101510.0,101500.0,0.01027]
[1750693988021,2.0620576,101510.0,101500.0,0.01027]
[1750693988220,2.16235699,101510.0,101500.0,0.01027]
[1750693988626,2.2541166,101510.0,101500.0,0.01027]
[1750693988865,2.4286366,101510.0,101500.0,0.01027]
[1750693989696,2.22803782,101510.0,101500.0,0.01027]
[1750693990362,2.16946026,101510.0,101500.0,0.01027]
[1750693990785,2.24767237,101510.0,101500.0,0.01027]
[1750693991413,1.89938685,101500.0,101490.0,0.0002]
[1750693991634,0.43588256,101500.0,101490.0,0.0002]
[1750693991821,0.61036256,101500.0,101490.0,0.0002]
[1750693992027,0.63999456,101500.0,101490.0,0.0002]
[1750693992239,0.67169456,101500.0,101490.0,0.0002]
[1750693992443,0.63999456,101500.0,101490.0,0.0002]
[1750693992901,0.46551456,101500.0,101490.0,0.065]
[1750693993106,0.46751456,101500.0,101490.0,0.074]
[1750693993308,0.46751456,101500.0,101490.0,0.078]
[1750693993753,0.40928669,101500.0,101490.0,0.078]
[1750693993952,0.46757461,101500.0,101490.0,0.078]
[1750693994164,0.64217461,101500.0,101490.0,0.078]
[1750693994360,0.58388669,101500.0,101490.0,0.078]
[1750693994565,0.39474584,101500.0,101490.0,0.078]
[1750693994777,0.45307819,101500.0,101490.0,0.078]
[1750693995602,0.39474584,101500.0,101490.0,0.078]
[1750693996032,0.45309844,101500.0,101490.0,0.078]
[1750693996768,0.39474584,101500.0,101490.0,0.078]
[1750693997144,0.45310097,101500.0,101490.0,0.078]
[1750693997366,0.45310102,101500.0,101490.0,0.078]
[1750693997570,0.45310102,101500.0,101490.0,0.27506375]
[1750693997850,0.42346902,101500.0,101490.0,0.078]
[1750693998051,0.42346902,101500.0,101490.0,0.28491684]
[1750693998264,0.42346902,101500.0,101490.0,0.29476983]
[1750693998474,0.46238488,101500.0,101490.0,0.31447512]
[1750693998893,0.12238488,101500.0,101490.0,0.31447512]
[1750693999108,0.09321787,101500.0,101490.0,0.31447512]
[1750694000207,0.05430201,101500.0,101490.0,0.31447512]
[1750694000860,0.02511384,101500.0,101490.0,0.31447512]
[1750694001083,0.05430201,101500.0,101490.0,0.31447512]
[1750694001285,0.02511384,101500.0,101490.0,0.31447512]
[1750694001490,0.05430201,101500.0,101490.0,0.31447512]
[1750694001722,0.36113993,101510.0,101500.0,0.28849979]
[1750694001935,0.36113993,101510.0,101500.0,0.46357979]
[1750694003030,0.36113993,101510.0,101500.0,0.46557979]
[1750694003215,0.02213993,101510.0,101500.0,0.46957979]
[1750694003421,0.00113792,101510.0,101500.0,0.46957979]
[1750694004952,0.03891586,101540.0,101530.0,0.22653284]
[1750694005168,0.03891586,101540.0,101530.0,0.46659284]
[1750694005387,0.03891586,101550.0,101540.0,0.28136318]
[1750694005638,0.03891586,101550.0,101540.0,0.29121112]
[1750694005844,0.47733767,101560.0,101550.0,0.0637]
[1750694006263,0.47733767,101560.0,101550.0,0.0627]
[1750694006484,0.41912079,101560.0,101550.0,0.0627]
[1750694006694,0.41912079,101560.0,101550.0,0.0617]
[1750694007579,0.42212079,101560.0,101550.0,0.0617]
[1750694008291,0.38320493,101560.0,101550.0,0.0567]
[1750694008698,0.39120493,101560.0,101550.0,0.0341]
[1750694008938,0.39120493,101560.0,101550.0,0.001]
[1750694010100,0.34,101550.0,101530.0,0.0328]
[1750694010341,0.4026,101550.0,101520.0,0.0305]
[1750694010562,0.45272,101550.0,101520.0,0.0305]
[1750694011229,0.39012,101550.0,101530.0,0.0643]
[1750694011655,0.39012,101550.0,101530.0,0.0633]
[1750694012075,0.39112,101550.0,101530.0,0.0633]
[1750694012509,0.39112,101550.0,101530.0,0.0643]
[1750694013592,0.41435688,101550.0,101530.0,0.0643]
[1750694013808,0.41435688,101550.0,101540.0,0.0302]
[1750694014048,0.36423688,101550.0,101540.0,0.0302]
[1750694014288,0.001,101550.0,101540.0,0.0302]
[1750694014501,0.02423543,101550.0,101530.0,0.0643]
[1750694014726,0.02323536,101550.0,101530.0,0.0633]
[1750694014953,0.34,101540.0,101530.0,0.0302]
[1750694015159,0.34,101540.0,101520.0,0.0633]
[1750694015364,0.35454085,101540.0,101520.0,0.0633]
[1750694015783,0.35454085,101540.0,101520.0,0.0629]
[1750694016016,0.35554085,101540.0,101530.0,0.003]
[1750694016214,0.38515985,101540.0,101530.0,0.003]
[1750694016425,0.01554085,101540.0,101530.0,0.003]
[1750694017929,0.01454085,101540.0,101520.0,0.0629]
[1750694018390,0.01554085,101540.0,101520.0,0.0679]
[1750694018638,0.01554085,101540.0,101520.0,0.0629]
[1750694018846,0.01654085,101540.0,101530.0,0.005]
[1750694019079,0.01554085,101540.0,101530.0,0.005]
[1750694019515,0.07834085,101540.0,101530.0,0.005]
[1750694019753,0.07734085,101540.0,101520.0,0.0302]
[1750694019968,0.369619,101550.0,101520.0,0.0612]
[1750694020194,5.39,101540.0,101530.0,0.0332]
[1750694020435,0.34,101540.0,101530.0,0.0642]
[1750694021157,0.341,101540.0,101530.0,0.0672]
[1750694023132,0.35554085,101540.0,101530.0,0.0362]
[1750694023332,0.35554085,101540.0,101530.0,0.003]
[1750694023632,0.35554085,101540.0,101530.0,0.0333]
[1750694023833,0.341,101540.0,101530.0,0.0333]
[1750694024028,0.341,101540.0,101530.0,0.0662]
[1750694026217,0.001,101540.0,101530.0,0.0662]
[1750694026427,0.001,101540.0,101530.0,0.0333]
[1750694026631,0.01554085,101540.0,101530.0,0.003]
[1750694028671,0.001,101540.0,101530.0,0.0645]
[1750694035394,0.001,101540.0,101530.0,0.26148611]
[1750694035598,0.001,101540.0,101530.0,0.0645]
[1750694036383,0.001,101540.0,101530.0,0.46627314]
[1750694036599,0.001,101540.0,101530.0,0.47612176]
[1750694037008,0.04020493,101560.0,101550.0,0.30043539]
[1750694037216,0.04020493,101560.0,101550.0,0.47551539]
[1750694037838,0.0001383,101560.0,101550.0,0.47351539]
[1750694038485,0.0011383,101560.0,101550.0,0.47951539]
[1750694039544,0.0011383,101560.0,101550.0,0.48151539]
[1750694041096,0.0011383,101560.0,101550.0,0.47166871]
[1750694041315,0.0011383,101560.0,101550.0,0.0721]
[1750694041784,0.0011383,101560.0,101550.0,0.24654]
[1750694041997,0.0011383,101560.0,101550.0,0.0721]
[1750694042211,0.0011383,101560.0,101550.0,0.24654]
[1750694043251,0.0011383,101560.0,101550.0,0.0721]
[1750694043476,0.0011383,101560.0,101550.0,0.24646]
[1750694043947,0.0011383,101560.0,101550.0,0.0721]
[1750694044172,0.0011383,101560.0,101550.0,0.24642]
[1750694045044,0.0011383,101560.0,101550.0,0.0389]
[1750694046320,0.0011383,101560.0,101550.0,0.008]
[1750694047174,0.36441499,101560.0,101550.0,0.008]
[1750694047804,0.37895584,101560.0,101550.0,0.008]
[1750694050178,0.37895809,101560.0,101550.0,0.008]
[1750694052112,0.39714691,101560.0,101550.0,0.008]
[1750694052336,0.37895809,101560.0,101550.0,0.0701]
[1750694052555,0.02441724,101560.0,101550.0,0.0701]
[1750694052829,0.0011383,101560.0,101550.0,0.28674154]
[1750694053042,0.0011383,101560.0,101550.0,0.27689457]
[1750694053255,0.0011383,101560.0,101550.0,0.0701]
[1750694053456,0.0011383,101560.0,101550.0,0.27689448]
[1750694054116,0.0011383,101560.0,101550.0,0.0701]
[1750694056764,0.0011383,101560.0,101550.0,0.27689467]
[1750694056981,0.0011383,101560.0,101550.0,0.2965891]
[1750694057220,0.0011383,101560.0,101550.0,0.28674193]
[1750694057652,0.0011383,101560.0,101550.0,0.2965891]
[1750694057867,0.0011383,101560.0,101550.0,0.30643617]
[1750694058291,0.0011383,101560.0,101550.0,0.31628314]
[1750694058559,0.0011383,101560.0,101550.0,0.31628208]
[1750694061096,0.0011383,101560.0,101550.0,0.28674155]
[1750694061295,0.0011383,101560.0,101550.0,0.29658843]
[1750694061492,0.0011383,101560.0,101550.0,0.30643521]
[1750694061732,0.0011383,101560.0,101550.0,0.29658843]
[1750694062392,0.0011383,101560.0,101550.0,0.30643521]
[1750694062603,0.0011383,101560.0,101550.0,0.29658843]
[1750694062822,0.0011383,101560.0,101550.0,0.30643511]
[1750694063663,0.51454085,101590.0,101570.0,0.0627]
[1750694063875,0.5968688,101590.0,101570.0,0.23695978]
[1750694064894,0.5998688,101590.0,101570.0,0.23695978]
[1750694065300,0.59986638,101590.0,101570.0,0.23695978]
[1750694065518,0.34,101580.0,101570.0,0.23695978]
[1750694065694,0.39829991,101590.0,101570.0,0.23695978]
[1750694065901,0.4428722,101590.0,101570.0,0.23695978]
[1750694066157,0.4428722,101590.0,101570.0,0.06315978]
[1750694066532,0.4398722,101590.0,101570.0,0.06315978]
[1750694066739,0.001,101580.0,101570.0,0.06315978]
[1750694067148,0.39829991,101590.0,101570.0,0.06315978]
[1750694067341,0.43986729,101590.0,101570.0,0.06315978]
[1750694067564,5.05,101580.0,101570.0,0.00045978]
[1750694067802,0.34,101560.0,101550.0,0.23694]
[1750694067939,0.34,101560.0,101550.0,0.0635]
[1750694068134,0.34,101560.0,101550.0,0.0315]
[1750694068356,0.34,101560.0,101540.0,0.0648]
[1750694068933,0.06514,101570.0,101540.0,0.0648]
[1750694069189,0.34,101560.0,101540.0,0.0648]
[1750694069874,0.094752,101570.0,101540.0,0.0668]
[1750694070108,0.34,101560.0,101540.0,0.0668]
[1750694070751,0.34,101560.0,101540.0,0.0678]
[1750694070965,0.01454085,101560.0,101540.0,0.0678]
[1750694072235,0.01454085,101560.0,101540.0,0.0658]
[1750694072440,0.01454085,101560.0,101540.0,0.0708]
[1750694072655,0.01554085,101560.0,101540.0,0.24324]
[1750694073070,0.01554085,101560.0,101540.0,0.24524]
[1750694073905,0.01554085,101560.0,101540.0,0.0718]
[1750694074111,0.01554085,101560.0,101540.0,0.24524]
[1750694077291,0.37887159,101560.0,101540.0,0.24524]
[1750694078354,0.37887285,101560.0,101540.0,0.24524]
[1750694079215,0.35554085,101560.0,101540.0,0.0718]
[1750694079435,5.05,101550.0,101540.0,0.0718]
[1750694079951,5.05,101550.0,101540.0,0.0398]
[1750694080170,0.34,101550.0,101540.0,0.0398]
[1750694080368,0.34,101550.0,101540.0,0.0328]
[1750694081463,0.341,101550.0,101540.0,0.008]
[1750694081688,0.34,101540.0,101530.0,0.0642]
[1750694081906,0.01454085,101530.0,101520.0,0.004]
[1750694082848,0.04416385,101530.0,101520.0,0.004]
[1750694083084,0.04462467,101530.0,101520.0,0.0364]
[1750694083303,0.04562467,101530.0,101520.0,0.009]
[1750694083523,5.05,101510.0,101500.0,0.0639]
[1750694084649,0.37422315,101510.0,101500.0,0.0639]
[1750694085498,0.03422315,101510.0,101500.0,0.0639]
[1750694085936,0.001,101510.0,101500.0,0.0626]
[1750694086208,0.002,101510.0,101500.0,0.0666]
[1750694086992,0.03672512,101510.0,101500.0,0.0666]
[1750694087242,0.002,101510.0,101500.0,0.0666]
[1750694088990,5.05,101520.0,101500.0,0.0666]
[1750694089639,5.05,101520.0,101500.0,0.0042]
[1750694089847,5.05,101520.0,101500.0,0.0002]
[1750694090061,5.05,101520.0,101500.0,0.0305]
[1750694090274,0.007,101520.0,101500.0,0.0635]
[1750694090486,0.507,101520.0,101500.0,0.0635]
[1750694090918,0.34,101510.0,101500.0,0.0635]
[1750694091135,0.34,101510.0,101500.0,0.0002]
[1750694092009,0.03024085,101520.0,101500.0,0.0002]
[1750694092227,0.001,101510.0,101500.0,0.0042]
[1750694093508,0.86574085,101520.0,101500.0,0.0012]
[1750694093730,0.88894616,101520.0,101500.0,0.0002]
[1750694094185,0.87324616,101520.0,101500.0,0.0324]
[1750694094397,0.865128,101520.0,101510.0,0.0322]
[1750694094632,0.8355,101520.0,101510.0,0.0629]
[1750694094846,0.8365,101520.0,101510.0,0.0629]
[1750694095708,0.8355,101520.0,101510.0,0.0629]
[1750694095961,0.8355,101520.0,101510.0,0.0639]
[1750694096180,0.8365,101520.0,101510.0,0.0639]
[1750694099183,0.8365,101520.0,101510.0,0.07375105]
[1750694099404,0.001,101520.0,101510.0,0.29047747]
[1750694099839,0.001,101520.0,101510.0,0.28062691]
[1750694100053,0.001,101520.0,101510.0,0.29047747]
[1750694100729,0.001,101520.0,101510.0,0.29347747]
[1750694101584,0.34,101540.0,101530.0,0.0649]
[1750694101794,0.34,101540.0,101530.0,0.0639]
[1750694102256,0.35454085,101550.0,101520.0,0.0327]
[1750694102474,0.37779279,101550.0,101530.0,0.0327]
[1750694102692,0.39595103,101550.0,101530.0,0.0327]
[1750694102927,0.38140683,101550.0,101530.0,0.0327]
[1750694103143,0.36325194,101550.0,101540.0,0.0327]
[1750694103358,0.36325194,101550.0,101540.0,0.0307]
[1750694103844,0.39706107,101550.0,101540.0,0.0307]
[1750694104278,0.05706107,101550.0,101540.0,0.0307]
[1750694104493,0.05906107,101550.0,101540.0,0.0307]
[1750694104932,0.03880913,101550.0,101540.0,0.0622]
[1750694105571,0.04180913,101550.0,101540.0,0.0632]
[1750694106685,0.06507052,101550.0,101540.0,0.0632]
[1750694108218,0.06507052,101550.0,101540.0,0.001]
[1750694108435,0.07961137,101550.0,101540.0,0.001]
[1750694108652,0.09778618,101550.0,101540.0,0.001]
[1750694110647,0.12695935,101550.0,101540.0,0.001]
[1750694110868,0.08324533,101550.0,101540.0,0.032]
[1750694111075,0.1124185,101550.0,101540.0,0.001]
[1750694111317,0.12695935,101550.0,101540.0,0.001]
[1750694111950,0.09778618,101550.0,101540.0,0.001]
[1750694112373,0.12695935,101550.0,101540.0,0.001]
[1750694113021,0.12695935,101550.0,101540.0,0.032]
[1750694113241,0.13605308,101550.0,101540.0,0.032]
[1750694113470,0.12695935,101550.0,101540.0,0.032]
[1750694113905,0.09778618,101550.0,101540.0,0.032]
[1750694114122,0.12695935,101550.0,101540.0,0.001]
[1750694114346,0.12697771,101550.0,101540.0,0.001]
[1750694114573,0.08326369,101550.0,101540.0,0.063]
[1750694116113,0.06507052,101550.0,101540.0,0.063]
[1750694116999,0.04180913,101550.0,101540.0,0.063]
[1750694117423,0.06508647,101550.0,101540.0,0.063]
[1750694117643,0.04180913,101550.0,101540.0,0.05845064]
[1750694119182,0.04180913,101550.0,101540.0,0.26526549]
[1750694119392,0.04180913,101550.0,101540.0,0.05845064]
[1750694123562,0.04180913,101550.0,101540.0,0.26526549]
[1750694123778,0.008,101550.0,101540.0,0.54873282]
[1750694123995,0.008,101550.0,101540.0,0.52903674]
[1750694124207,0.008,101550.0,101540.0,0.55858066]
[1750694124422,0.006,101550.0,101540.0,0.55858096]
[1750694124635,0.006,101550.0,101540.0,0.57827636]
[1750694124849,0.34,101560.0,101550.0,0.0639]
[1750694125059,0.34,101560.0,101550.0,0.0629]
[1750694125960,0.4956,101570.0,101560.0,0.0313]
[1750694126173,0.8356,101570.0,101560.0,0.0313]
[1750694126389,0.0001,101570.0,101560.0,0.22822792]
[1750694126641,0.0001,101570.0,101560.0,0.0313]
[1750694127061,0.0001,101570.0,101560.0,0.23807431]
[1750694127283,0.0001,101570.0,101560.0,0.4202406]
[1750694127696,0.0011,101570.0,101560.0,0.4212406]
[1750694127917,0.0011,101570.0,101560.0,0.20462]
[1750694128133,0.0011,101570.0,101560.0,0.23572]
[1750694130285,0.0011,101570.0,101560.0,0.44249431]
[1750694130723,0.0011,101570.0,101560.0,0.23572]
[1750694134732,0.10139939,101570.0,101560.0,0.0624]
[1750694136060,0.44139939,101570.0,101560.0,0.0624]
[1750694136935,0.46463352,101570.0,101560.0,0.001]
[1750694139226,0.46463352,101570.0,101560.0,0.0313]
[1750694140548,0.46463352,101570.0,101560.0,0.0629]
[1750694141425,0.36433413,101570.0,101560.0,0.0629]
[1750694142613,0.3411,101570.0,101560.0,0.0629]
[1750694143999,0.3411,101570.0,101560.0,0.07274639]
[1750694144214,0.3411,101570.0,101560.0,0.26967431]
[1750694144454,0.0011,101570.0,101560.0,0.29921241]
[1750694144696,0.0011,101570.0,101560.0,0.48225812]
[1750694144947,0.0011,101570.0,101560.0,0.58255751]
[1750694147758,0.004,101590.0,101580.0,0.28752134]
[1750694147973,0.004,101590.0,101580.0,0.56102073]
[1750694148835,0.004,101590.0,101580.0,0.56002073]
[1750694149682,0.004,101590.0,101580.0,0.55217696]
[1750694149916,0.004,101590.0,101580.0,0.55217706]
[1750694150128,0.004,101590.0,101580.0,0.5423329]
[1750694150341,0.004,101590.0,101580.0,0.56202132]
[1750694150551,0.005,101590.0,101580.0,0.57586538]
[1750694150765,0.005,101590.0,101580.0,0.58570876]
[1750694150985,0.005,101590.0,101580.0,0.57586518]
[1750694156470,0.005,101590.0,101580.0,0.57486518]
[1750694156893,0.004,101590.0,101580.0,0.57086518]
[1750694157175,0.005,101590.0,101580.0,0.57786518]
[1750694158025,0.005,101590.0,101580.0,0.98561938]
[1750694158246,0.005,101590.0,101580.0,1.03749938]
[1750694158459,0.0001,101600.0,101590.0,0.69685327]
[1750694158672,0.00023825,101600.0,101590.0,0.79715266]
[1750694158882,0.00023825,101600.0,101590.0,1.13715266]
[1750694159326,0.00023825,101600.0,101590.0,1.20589677]
[1750694159535,0.00023825,101600.0,101590.0,1.23618389]
[1750694159744,0.00023825,101600.0,101590.0,1.24318389]
[1750694159963,0.0001,101610.0,101600.0,0.68329013]
[1750694160179,0.0001,101610.0,101600.0,0.95666952]
[1750694160411,0.0001,101610.0,101600.0,1.00149749]
[1750694160824,0.0001,101610.0,101600.0,1.37162549]
[1750694161528,0.0001,101620.0,101610.0,0.58089535]
[1750694161729,0.0001,101620.0,101610.0,1.21795521]
[1750694162185,0.004,101630.0,101620.0,0.64407307]
[1750694162403,0.004,101630.0,101620.0,1.31066581]
[1750694162624,0.0001,101640.0,101630.0,0.24085079]
[1750694162848,0.00056074,101640.0,101630.0,0.40455018]
[1750694163077,0.00056074,101640.0,101630.0,0.39000933]
[1750694163300,0.00056074,101640.0,101630.0,0.54341118]
[1750694163547,0.00056074,101640.0,101630.0,0.56308933]
[1750694163742,0.00056074,101640.0,101630.0,0.56308953]
[1750694163951,0.00056074,101640.0,101630.0,0.5532505]
[1750694164155,0.00256074,101640.0,101630.0,0.33677939]
[1750694164358,0.00256074,101640.0,101630.0,0.23644]
[1750694164764,0.00256074,101640.0,101620.0,0.11196]
[1750694164969,0.01161489,101640.0,101630.0,0.17304]
[1750694165178,0.01161489,101640.0,101630.0,0.002]
[1750694165392,0.0157,101640.0,101630.0,0.002]
[1750694165597,0.34,101630.0,101620.0,0.17304]
[1750694165793,0.44029939,101630.0,101610.0,0.0324]
[1750694166022,4.902804,101650.0,101620.0,0.16679939]
[1750694166227,0.34,101640.0,101620.0,0.53664845]
[1750694166440,0.34,101640.0,101620.0,0.48198893]
[1750694166661,0.00013817,101650.0,101640.0,0.27111127]
[1750694166866,0.00013817,101650.0,101640.0,0.55712746]
[1750694167076,0.00013817,101650.0,101640.0,0.56696542]
[1750694167469,0.00013817,101650.0,101640.0,0.55496542]
[1750694167805,0.00013817,101650.0,101640.0,0.54512755]
[1750694168014,0.00713817,101650.0,101640.0,0.56480357]
[1750694168229,0.00713817,101650.0,101640.0,0.54512755]
[1750694168432,0.00713817,101650.0,101640.0,0.55296551]
[1750694168632,0.00713817,101650.0,101640.0,0.54312755]
[1750694168841,0.00713817,101650.0,101640.0,0.55296551]
[1750694169647,0.00713817,101650.0,101640.0,0.55392551]
[1750694170059,0.00013817,101650.0,101640.0,0.52441095]
[1750694170270,0.00013817,101650.0,101640.0,0.5629257]
[1750694170476,0.00013817,101650.0,101640.0,0.54224949]
[1750694170705,0.00013817,101650.0,101640.0,0.53241095]
[1750694170908,0.00013817,101650.0,101640.0,0.011]
[1750694171127,0.00013817,101650.0,101640.0,0.184]
[1750694171567,0.00013817,101650.0,101640.0,0.2173]
[1750694171788,0.00013817,101650.0,101640.0,0.5844257]
[1750694171998,0.01824217,101650.0,101640.0,0.5824257]
[1750694172417,0.01824217,101650.0,101640.0,0.5834257]
[1750694172861,0.01824217,101650.0,101640.0,0.56458774]
[1750694173076,0.01824217,101650.0,101640.0,0.5774259]
[1750694173286,0.01824217,101650.0,101640.0,0.54791085]
[1750694173497,0.01824217,101650.0,101640.0,0.34129939]
[1750694174166,0.01824217,101650.0,101640.0,0.36507231]
[1750694174362,0.00013817,101650.0,101640.0,0.56758706]
[1750694176233,0.00013817,101650.0,101640.0,0.16829939]
[1750694176465,0.01826884,101650.0,101640.0,0.241]
[1750694176668,0.01826884,101650.0,101640.0,0.2074]
[1750694177304,0.01826884,101650.0,101640.0,0.41401137]
[1750694177520,0.02733357,101650.0,101640.0,0.44561137]
[1750694177744,0.02733357,101650.0,101640.0,0.43577292]
[1750694177944,0.02733357,101650.0,101640.0,0.239]
[1750694178200,0.02733357,101650.0,101640.0,0.066]
[1750694178383,0.02733357,101650.0,101640.0,0.239]
[1750694178607,0.05057444,101650.0,101640.0,0.239]
[1750694178826,0.05057444,101650.0,101640.0,0.5557491]
[1750694179036,0.02734549,101650.0,101640.0,0.56558716]
[1750694179242,0.02734549,101650.0,101640.0,0.53603231]
[1750694179470,0.05057558,101650.0,101640.0,0.24879864]
[1750694179676,0.05058166,101650.0,101640.0,0.57538561]
[1750694179880,0.02734549,101650.0,101640.0,0.56554775]
[1750694180089,0.02734549,101650.0,101640.0,0.575386]
[1750694180347,0.02734549,101650.0,101640.0,0.58522396]
[1750694182256,0.02734549,101650.0,101640.0,0.56554774]
[1750694182462,0.02734549,101650.0,101640.0,0.58522386]
[1750694182677,0.02734549,101650.0,101640.0,0.5753859]
[1750694182885,0.02736884,101650.0,101640.0,0.5753859]
[1750694183320,0.02736884,101650.0,101640.0,0.53603231]
[1750694183530,0.02736884,101650.0,101640.0,0.5557093]
[1750694183739,0.05063055,101650.0,101640.0,0.5557093]
[1750694183944,0.05063055,101650.0,101640.0,0.33925939]
[1750694184127,0.05063055,101650.0,101640.0,0.54587085]
[1750694184394,0.05063055,101650.0,101640.0,0.53603231]
[1750694184612,0.02736884,101650.0,101640.0,0.58008791]
[1750694185035,0.02736884,101650.0,101640.0,0.56554706]
[1750694185698,0.02739388,101650.0,101640.0,0.56554706]
[1750694186168,0.02739388,101650.0,101640.0,0.58008791]
[1750694186922,0.02740089,101650.0,101640.0,0.58008791]
[1750694187159,0.02740089,101650.0,101640.0,0.61972626]
[1750694187375,0.02740089,101650.0,101640.0,0.58008791]
[1750694187792,0.02740089,101650.0,101640.0,0.56554706]
[1750694188488,0.02747734,101650.0,101640.0,0.39258706]
[1750694188698,0.02747734,101650.0,101640.0,0.56550706]
[1750694189978,0.02917317,101670.0,101660.0,0.0634]
[1750694190202,0.05250944,101670.0,101660.0,0.33661939]
[1750694190386,0.05250944,101670.0,101660.0,0.54319011]
[1750694190625,0.05250944,101670.0,101660.0,0.54319021]
[1750694191271,0.05550944,101670.0,101660.0,0.33661939]
[1750694191914,0.09625935,101670.0,101660.0,0.3464561]
[1750694192124,0.05550944,101670.0,101660.0,0.5333536]
[1750694192373,0.05550944,101670.0,101660.0,0.5353536]
[1750694192374,0.05250944,101670.0,101660.0,0.5353536]
[1750694192621,0.05350944,101670.0,101660.0,0.33661939]
[1750694192872,0.02433627,101670.0,101660.0,0.56686305]
[1750694193366,0.02433627,101670.0,101660.0,0.55702692]
[1750694193644,0.02433627,101670.0,101660.0,0.57669985]
[1750694193877,0.02433627,101670.0,101660.0,0.39394343]
[1750694194132,0.02433627,101670.0,101660.0,0.34061939]
[1750694195316,0.02433627,101670.0,101660.0,0.20852]
[1750694195317,0.36433627,101670.0,101660.0,0.20852]
[1750694196106,0.36433627,101670.0,101660.0,0.004]
[1750694196332,0.40920944,101670.0,101660.0,0.004]
[1750694196549,0.51925152,101670.0,101660.0,0.004]
[1750694198413,0.15491525,101670.0,101640.0,0.031]
[1750694198628,0.62947586,101660.0,101620.0,0.10857406]
[1750694198848,0.0157,101650.0,101630.0,0.00013817]
[1750694199538,0.04487647,101640.0,101630.0,0.00013817]